Workbook

Sheet Sheet1
A1: Globale Energieszenarien
A2: Wie wir beim Vergleich der Szenarien im Text «Volle Fahrt auf das 3-Grad-Szenario» gerechnet haben.
A4: 1. Das Ergebnis
A5: Die Grafik entält den aktuellen Verbrauch (2017) gemäss IEA, drei Szenarien zum Jahr 2040 sowie ein IPCC-Szenario für 2050.
A27: 2. Einheiten
A28: Die Szenarien sind mehrheitlich in Millionen Tonnen Öl-Äquivalenten angegeben. Jenes des IPCC in Exajoule. Für den Vergleich wurde es umgerechnet.
A29: Die Angaben entsprechen nicht den Originalen der Herausgeber (Punkt 4.) sondern enthalten die vereinheitlichten Äquivalenzfaktoren (Punkt 3.).
A30: Für eine einheitlichere Darstellung wurden danach sämtliche Szenarien in Petawattstunden umgerechnet.
F32: Umrechnungsfaktor | I32: Umrechnungsfaktor
F33: Exajoule in MTOE | I33: MTOE in PWh
F34: 23.8845897 | I34: 0.01163
B35: IEA 2017 | C35: IEA 2040 | D35: BP 2040 | E35: WEC 2040 | F35: IPCC 2050 | J35: IEA 2017 | K35: Anteile 2017 | L35: IEA 2040 | M35: Anteile 2040 | N35: BP 2040 | O35: Anteile 2040 | P35: WEC 2040 | Q35: Anteile 2040 | R35: IPCC 2050 | S35: Anteile 2050
A36: Rohöl | B36: =B77 -> 4435.31 | C36: 4894.2 | D36: =C54*4860.3 -> 4884.6015 | E36: 4191 | F36: 2221.266842 | I36: Rohöl | J36: =B36*$I$34 -> 51.5826553 | K36: =100*J36/J$41 -> 29.17140524 | L36: =C36*$I$34 -> 56.919546 | M36: =100*L36/L$41 -> 23.00354431 | N36: =D36*$I$34 -> 56.80791544 | O36: =100*N36/N$41 -> 26.77607322 | P36: =E36*$I$34 -> 48.74133 | Q36: =100*P36/P$41 -> 21.75909756 | R36: =F36*$I$34 -> 25.83333337 | S36: =100*R36/R$41 -> 10.16653035
A37: Erdgas | B37: =B78 -> 3107.1 | C37: 4435.84 | D37: =C55*4617.1 -> 4201.561 | E37: 5087 | F37: 2125.728483 | I37: Erdgas | J37: 36.135573 | K37: =100*J37/J$41 -> 20.43565686 | L37: 51.5888192 | M37: =100*L37/L$41 -> 20.84917698 | N37: 48.86415443 | O37: =100*N37/N$41 -> 23.03182869 | P37: 59.16181 | Q37: =100*P37/P$41 -> 26.41100675 | R37: 24.72222226 | S37: =100*R37/R$41 -> 9.729260228
A38: Kohle | B38: =B76 -> 3750.13 | C38: 3808.9 | D38: =C56*3625.2 -> 3788.334 | E38: 2918 | F38: 620.9993322 | I38: Kohle | J38: 43.6140119 | K38: 24.66491901 | L38: 44.297507 | M38: 17.90245595 | N38: 44.05832442 | O38: 20.76662928 | P38: 33.93634 | Q38: 15.14985604 | R38: 7.222222233 | S38: 2.842255797
A39: Atom | B39: =B79 -> 687.67 | C39: =971.13 -> 971.13 | D39: =769.8 -> 769.8 | E39: 977 | F39: =597.1147425/0.33 -> 1809.438614 | I39: Atom | J39: 7.9976021 | K39: 4.522863169 | L39: 11.2942419 | M39: 4.564470595 | N39: 8.952774 | O39: 4.2198368 | P39: 11.36251 | Q39: 5.072450087 | R39: 21.04377108 | S39: 8.28163111
A40: Erneuerbar* | B40: =B81+(B80+B82)/0.33 -> 3224.09697 | C40: =C81+(C80+C82)/0.33 -> 7165.781818 | D40: =C58*3993.1/0.33 -> 4598.115152 | E40: =1597+(472+1010)/0.33 -> 6087.909091 | F40: =$F34*(154.13+157.37/0.33) -> 15071.386 | I40: Erneuerbar* | J40: 37.49624776 | K40: 21.20515572 | L40: 83.33804255 | M40: 33.68035216 | N40: 53.47607921 | O40: 25.20563201 | P40: 70.80238273 | Q40: 31.60758956 | R40: 175.2802191 | S40: 68.98032251
A41: Total | B41: =SUM(B36:B40) -> 15204.30697 | C41: =SUM(C36:C40) -> 21275.85182 | D41: =SUM(D36:D40) -> 18242.41165 | E41: =SUM(E36:E40) -> 19260.90909 | F41: =SUM(F36:F40) -> 21848.81927 | I41: Total | J41: 176.8260901 | K41: 100 | L41: 247.4381566 | M41: 100 | N41: 212.1592475 | O41: 100 | P41: 224.0043727 | Q41: 100 | R41: 254.1017681 | S41: 100
A42: *Erneuerbar enthält Energie aus Geothermie, Biomasse, Biotreibstoffe, Wind-, Sonnen-, und Wasserkraft | I42: Fossile | J42: 0 | K42: =100*(J36+J37+J38)/J41 -> 74.27198111 | L42: 0 | M42: =100*(L36+L37+L38)/L41 -> 61.75517724 | N42: 0 | O42: =100*(N36+N37+N38)/N41 -> 70.57453119 | P42: 0 | Q42: =100*(P36+P37+P38)/P41 -> 63.31996035 | R42: 0 | S42: =100*(R36+R37+R38)/R41 -> 22.73804638
A45: 3. Äquivalenzfaktoren
A46: Die Organisationen gewichten den Enregiegehalt der verschiedenen Träger auf unterschiedliche Weise. Um die Szenarien vegleichbar zu machen, wenden wir überall dieselben Faktoren an.
A47: Links die Faktoren, wie sie in den jeweiligen Publikationen verwendet werden. Die Quellen sind ebenfalls angegeben. Aus letzterer eine Tabelle, die darstellt wie sich verschiedene Bilanzierungsmethoden unterscheiden.
A48: Rechts die vereinheitlichten Faktoren
A51: Quellen für Faktoren: | B51: Kran et al. | C51: RFF | D51: IPCC | F51: Einheitliche Faktoren für Uniformität
B52: IEA | C52: BP | D52: WEC | E52: IPCC | F52: IEA | G52: BP | H52: WEC | I52: IPCC
A54: oil | B54: 1 | C54: 1.005 | D54: 1 | E54: 1 | F54: 1 | G54: 1 | H54: 1 | I54: 1
A55: gas | B55: 1 | C55: 0.91 | D55: 1 | E55: 1 | F55: 1 | G55: 1 | H55: 1 | I55: 1
A56: coal | B56: 1 | C56: 1.045 | D56: 1 | E56: 1 | F56: 1 | G56: 1 | H56: 1 | I56: 1
A57: nuclear | B57: 0.33 | C57: 0.38 | D57: 0.33 | E57: 1 | F57: 0.33 | G57: 0.33 | H57: 0.33 | I57: 0.33
A58: wind+pv+hydro | B58: 1 | C58: 0.38 | D58: 1 | E58: 1 | F58: 0.33 | G58: 0.33 | H58: 0.33 | I58: 0.33
A59: geothermal | B59: 0.1 | C59: 0.38 | D59: ?* | E59: ?* | F59: 0.033* | G59: 0.33 | H59: 0.33 | I59: 0.33
A60: biomass | B60: 0.35 | C60: 0.38 | D60: 0.35 | E60: 0.35 | F60: 0.35 | G60: 0.35 | H60: 0.35 | I60: 0.35
A61: solar thermal | B61: 0.33 | C61: 0.38 | D61: 0.33** | E61: 0.33** | F61: 0.33 | G61: 0.33 | H61: 0.33 | I61: 0.33
A63: * Genaue Anteile Geothermal bzw. dessen Faktoren wurden nicht deklariert überall deklariert bzw. gefunden. Sind aber um mindestens eine Grössenordnung tiefer als andere (e.g. Table 6.3 WEO).
A64: Es wird angenommen dass dieser Fehler darum entsprechend kleiner ausfällt, als wenn der Äquivalenzfaktor für übrige Erneuerbare (abgsehen von Biomasse) nicht berücksichtigt würden.
A66: ** Solar thermal für WEC und IPCC gemäss "direct equivalent method" für "non-combustible fuels"
A68: 4. Originalzahlen
A69: Diese Angaben haben wir aus den Szenarien der Organisationen entnommen. Sie sind in den jeweiligen Einheiten angegeben.
A71: Quellen für Daten: | B71: WEC | C71: IEA | D71: BP | E71: IPCC
A73: IEA | B73: 2017e | C73: 2040 | D73: BP | E73: 2040 | F73: WEC | I73: IPCC
A75: TPED | B75: 13971.71 | C75: 17714.69 | D75: World | E75: 17865.82
A76: Coal | B76: 3750.13 | C76: 3808.9
A77: Oil | B77: 4435.31 | C77: 4894.2 | D77: Oil | E77: 4860.35
A78: Gas | B78: 3107.1 | C78: 4435.84 | D78: Gas | E78: 4617.1
A79: Nuclear | B79: 687.67 | C79: 971.13 | D79: Coal | E79: 3625.22
A80: Hydro | B80: 353.35 | C80: 531.29 | D80: Nuclear | E80: 769.77
A81: Bioenergy | B81: 1384.4 | C81: 1850.6 | D81: Hydro | E81: 1245.29
A82: Other renewables | B82: 253.75 | C82: 1222.72 | D82: Renewables | E82: 2748.09
A87: Kontakt
A88: Bei Fragen und Anregungen erreichen Sie uns unter kontakt@republik.ch
